[Event "Schack-SM 2024: Veteran-SM 65+"]
[Site "Fortnox Arena, Hejaregatan 5, Vaxjo, Sweden"]
[Date "2024.07.02"]
[Round "4.7"]
[White "Green, Per"]
[Black "Adler, Bo"]
[Result "1/2-1/2"]
[TimeControl "90 minutes for 40 moves + 30 minutes for the rest of the game + 30 seconds per move from move one."]
[WhiteElo "1944"]
[BlackElo "2108"]

1. c4 {[%clk 01:30:32]} {[%emt 00:00:28]} e5 {[%clk 01:30:36]} {[%emt
00:00:24]} 2. g3 {[%clk 01:30:25]} {[%emt 00:00:37]} Nf6 {[%clk 01:26:52]}
{[%emt 00:04:13]} 3. Bg2 {[%clk 01:30:27]} {[%emt 00:00:29]} Nc6 {[%clk
01:23:53]} {[%emt 00:03:29]} 4. Nf3 {[%clk 01:28:15]} {[%emt 00:02:42]} d6
{[%clk 01:16:19]} {[%emt 00:08:03]} 5. Nc3 {[%clk 01:24:45]} {[%emt 00:04:00]}
Be7 {[%clk 01:13:17]} {[%emt 00:03:32]} 6. d4 {[%clk 01:20:27]} {[%emt
00:04:49]} Bg4 {[%clk 01:09:17]} {[%emt 00:04:30]} 7. Be3 {[%clk 01:18:37]}
{[%emt 00:02:19]} O-O {[%clk 01:03:22]} {[%emt 00:06:26]} 8. h3 {[%clk
01:16:37]} {[%emt 00:02:30]} exd4 {[%clk 00:52:43]} {[%emt 00:11:09]} 9. Nxd4
{[%clk 01:15:43]} {[%emt 00:01:24]} Bd7 {[%clk 00:52:59]} {[%emt 00:00:13]} 10.
Nxc6 {[%clk 01:13:19]} {[%emt 00:02:54]} Bxc6 {[%clk 00:51:27]} {[%emt
00:02:02]} 11. Bxc6 {[%clk 01:09:54]} {[%emt 00:03:56]} bxc6 {[%clk 00:51:55]}
{[%emt 00:00:02]} 12. O-O {[%clk 01:04:53]} {[%emt 00:05:31]} Nd7 {[%clk
00:45:42]} {[%emt 00:06:43]} 13. Qd2 {[%clk 00:59:40]} {[%emt 00:05:43]} Bf6
{[%clk 00:34:47]} {[%emt 00:11:24]} 14. Ne4 {[%clk 00:54:41]} {[%emt 00:05:29]}
Re8 {[%clk 00:34:36]} {[%emt 00:00:42]} 15. Nxf6+ {[%clk 00:52:33]} {[%emt
00:02:38]} Qxf6 {[%clk 00:34:57]} {[%emt 00:00:08]} 16. Rac1 {[%clk 00:51:47]}
{[%emt 00:01:17]} a5 {[%clk 00:29:54]} {[%emt 00:05:33]} 17. b3 {[%clk
00:47:40]} {[%emt 00:04:36]} c5 {[%clk 00:29:17]} {[%emt 00:01:08]} 18. Kh2
{[%clk 00:46:25]} {[%emt 00:01:46]} Qe6 {[%clk 00:27:37]} {[%emt 00:02:08]} 19.
Rfe1 {[%clk 00:45:37]} {[%emt 00:01:18]} Nf6 {[%clk 00:23:42]} {[%emt
00:04:25]} 20. Rcd1 {[%clk 00:42:21]} {[%emt 00:03:46]} h6 {[%clk 00:23:08]}
{[%emt 00:01:05]} 21. Rb1 {[%clk 00:38:50]} {[%emt 00:04:00]} Ne4 {[%clk
00:19:46]} {[%emt 00:03:53]} 22. Qd3 {[%clk 00:34:08]} {[%emt 00:05:12]} g5
{[%clk 00:18:40]} {[%emt 00:01:36]} 23. Kg2 {[%clk 00:32:52]} {[%emt 00:01:45]}
f5 {[%clk 00:17:57]} {[%emt 00:01:14]} 24. Bd2 {[%clk 00:32:16]} {[%emt
00:01:05]} Qe5 {[%clk 00:17:00]} {[%emt 00:01:27]} 25. f4 {[%clk 00:26:57]}
{[%emt 00:05:49]} Qd4 {[%clk 00:15:17]} {[%emt 00:02:13]} 26. Be3 {[%clk
00:25:16]} {[%emt 00:02:10]} Qg7 {[%clk 00:14:46]} {[%emt 00:01:02]} 27. fxg5
{[%clk 00:21:44]} {[%emt 00:04:02]} hxg5 {[%clk 00:14:55]} {[%emt 00:00:21]} 28.
Qd5+ {[%clk 00:19:10]} {[%emt 00:03:04]} Qf7 {[%clk 00:15:09]} {[%emt
00:00:17]} 29. Qd3 {[%clk 00:17:08]} {[%emt 00:02:31]} Nxg3 {[%clk 00:15:04]}
{[%emt 00:00:35]} 30. Bxg5 {[%clk 00:17:03]} {[%emt 00:00:35]} Ne4 {[%clk
00:14:49]} {[%emt 00:00:47]} 31. Bf4 {[%clk 00:16:44]} {[%emt 00:00:48]} Kh7
{[%clk 00:15:03]} {[%emt 00:00:16]} 32. Qf3 {[%clk 00:15:14]} {[%emt 00:01:59]}
Rg8+ {[%clk 00:14:30]} {[%emt 00:01:04]} 33. Kh2 {[%clk 00:15:09]} {[%emt
00:00:34]} Rg6 {[%clk 00:14:54]} {[%emt 00:00:07]} 34. Rg1 {[%clk 00:14:50]}
{[%emt 00:00:48]} Rxg1 {[%clk 00:15:11]} {[%emt 00:00:13]} 35. Rxg1 {[%clk
00:15:06]} {[%emt 00:00:14]} a4 {[%clk 00:14:49]} {[%emt 00:00:53]} 36. Bc1
{[%clk 00:11:20]} {[%emt 00:04:16]} Rg8 {[%clk 00:14:32]} {[%emt 00:00:47]} 37.
Rxg8 {[%clk 00:08:19]} {[%emt 00:03:31]} Kxg8 {[%clk 00:15:01]} {[%emt
00:00:01]} 38. Bb2 {[%clk 00:08:29]} {[%emt 00:00:19]} axb3 {[%clk 00:15:21]}
{[%emt 00:00:10]} 39. axb3 {[%clk 00:04:03]} {[%emt 00:04:56]} Qg6 {[%clk
00:15:10]} {[%emt 00:00:41]} 40. Qd3 {[%clk 00:03:35]} {[%emt 00:00:58]} Kh7
{[%clk 00:14:18]} {[%emt 00:01:23]} 41. Qf3 {[%clk 00:00:55]} {[%emt 00:03:09]}
Kg8 {[%clk 00:04:17]} {[%emt 00:10:32]} 42. Bc1 {[%clk 00:00:47]} {[%emt
00:00:37]} Kf7 {[%clk 00:03:54]} {[%emt 00:00:54]} 43. Bf4 {[%clk 00:00:44]}
{[%emt 00:00:32]} Ke6 {[%clk 00:04:05]} {[%emt 00:00:18]} 44. Qd3 {[%clk
00:29:25]} {[%emt 00:01:50]} c6 {[%clk 00:34:11]} {[%emt 00:00:25]} 45. Qf3
{[%clk 00:27:12]} {[%emt 00:02:43]} Kd7 {[%clk 00:33:01]} {[%emt 00:01:39]} 46.
Bc1 {[%clk 00:25:41]} {[%emt 00:02:00]} Nf6 {[%clk 00:30:22]} {[%emt 00:03:10]}
47. Bb2 {[%clk 00:24:55]} {[%emt 00:01:17]} Ne4 {[%clk 00:28:57]} {[%emt
00:01:54]} 48. Bc1 {[%clk 00:25:04]} {[%emt 00:00:21]} Qf6 {[%clk 00:29:11]}
{[%emt 00:00:15]} 49. Bf4 {[%clk 00:24:55]} {[%emt 00:00:40]} Qg6 {[%clk
00:26:20]} {[%emt 00:03:20]} 50. Bc1 {[%clk 00:24:45]} {[%emt 00:00:41]} Ke6
{[%clk 00:23:59]} {[%emt 00:02:51]} 51. Bf4 {[%clk 00:19:16]} {[%emt 00:05:59]}
Kd7 {[%emt 00:01:23]} 52. Bc1 {[%emt 00:00:02]} 1/2-1/2

[Event "Schack-SM 2024: Veteran-SM 65+"]
[Site "Fortnox Arena, Hejaregatan 5, Vaxjo, Sweden"]
[Date "2024.07.01"]
[Round "3.1"]
[White "Engstrom, Kaj"]
[Black "Malmdin, Nils-Ake"]
[Result "1-0"]
[TimeControl "90 minutes for 40 moves + 30 minutes for the rest of the game + 30 seconds per move from move one."]
[BlackTitle "FM"]
[WhiteElo "2163"]
[BlackElo "2064"]

1. e4 {[%clk 01:30:57]} d5 {[%clk 01:08:51]} {[%emt 00:22:08]} 2. exd5 {[%clk
01:29:07]} {[%emt 00:02:20]} Nf6 {[%clk 01:08:36]} {[%emt 00:00:44]} 3. Nc3
{[%clk 01:22:49]} {[%emt 00:06:48]} Nxd5 {[%clk 01:07:54]} {[%emt 00:01:11]} 4.
Bc4 {[%clk 01:22:39]} {[%emt 00:00:41]} e6 {[%clk 01:03:19]} {[%emt 00:05:04]}
5. Nf3 {[%clk 01:15:03]} {[%emt 00:08:07]} Be7 {[%clk 00:58:59]} {[%emt
00:04:49]} 6. O-O {[%clk 01:12:25]} {[%emt 00:03:09]} O-O {[%clk 00:58:54]}
{[%emt 00:00:34]} 7. Re1 {[%clk 01:10:43]} {[%emt 00:02:12]} Nb6 {[%clk
00:55:57]} {[%emt 00:03:26]} 8. Bb3 {[%clk 01:09:34]} {[%emt 00:01:41]} a5
{[%clk 00:54:56]} {[%emt 00:01:31]} 9. a3 {[%clk 01:08:43]} {[%emt 00:01:21]}
Na6 {[%clk 00:44:27]} {[%emt 00:10:58]} 10. d3 {[%clk 01:04:10]} {[%emt
00:05:04]} Nc5 {[%clk 00:43:39]} {[%emt 00:01:17]} 11. Ba2 {[%clk 01:04:25]}
{[%emt 00:00:16]} Nca4 {[%clk 00:43:11]} {[%emt 00:00:56]} 12. Ne4 {[%clk
01:00:06]} {[%emt 00:04:51]} Nc5 {[%clk 00:41:27]} {[%emt 00:02:13]} 13. Ng3
{[%clk 00:59:38]} {[%emt 00:00:58]} Nd5 {[%clk 00:35:21]} {[%emt 00:06:35]} 14.
d4 {[%clk 00:56:45]} {[%emt 00:03:25]} Na6 {[%clk 00:32:33]} {[%emt 00:03:18]}
15. c4 {[%clk 00:48:30]} {[%emt 00:08:46]} Nf6 {[%clk 00:32:52]} {[%emt
00:00:10]} 16. Be3 {[%clk 00:38:54]} {[%emt 00:10:06]} b6 {[%clk 00:31:24]}
{[%emt 00:01:58]} 17. Qc2 {[%clk 00:36:17]} {[%emt 00:03:07]} Bb7 {[%clk
00:31:06]} {[%emt 00:00:48]} 18. Ne5 {[%clk 00:35:16]} {[%emt 00:01:31]} c5
{[%clk 00:28:24]} {[%emt 00:03:12]} 19. Rad1 {[%clk 00:34:09]} {[%emt
00:01:37]} cxd4 {[%clk 00:25:56]} {[%emt 00:02:58]} 20. Bxd4 {[%clk 00:30:25]}
{[%emt 00:04:15]} Qc7 {[%clk 00:26:00]} {[%emt 00:00:25]} 21. Bb1 {[%clk
00:29:44]} {[%emt 00:01:12]} g6 {[%clk 00:22:21]} {[%emt 00:04:08]} 22. h4
{[%clk 00:28:06]} {[%emt 00:02:08]} Bc5 {[%emt 00:04:29]} 23. Bc3 {[%clk
00:19:26]} {[%emt 00:06:19]} Rad8 {[%emt 00:03:53]} 24. h5 {[%clk 00:16:35]}
{[%emt 00:00:29]} Rxd1 {[%clk 00:16:56]} {[%emt 00:04:16]} 25. Rxd1 {[%clk
00:14:55]} {[%emt 00:02:10]} Nb8 {[%clk 00:12:14]} {[%emt 00:05:11]} 26. Qd2
{[%clk 00:08:07]} {[%emt 00:07:20]} Nc6 {[%clk 00:08:42]} {[%emt 00:04:01]} 27.
Nd3 {[%clk 00:05:50]} {[%emt 00:02:47]} Bd4 {[%clk 00:06:06]} {[%emt 00:03:05]}
28. Bxd4 {[%clk 00:03:46]} {[%emt 00:02:34]} Nxd4 {[%clk 00:06:19]} {[%emt
00:00:17]} 29. Qg5 {[%clk 00:02:14]} {[%emt 00:02:03]} Ne4 {[%clk 00:04:43]}
{[%emt 00:02:06]} 30. Nxe4 {[%clk 00:01:54]} {[%emt 00:00:50]} Bxe4 {[%clk
00:05:00]} {[%emt 00:00:12]} 31. h6 {[%clk 00:01:23]} {[%emt 00:01:02]} f6
{[%clk 00:04:11]} {[%emt 00:01:20]} 32. Qe3 {[%clk 00:01:41]} {[%emt 00:00:12]}
Bxd3 {[%clk 00:04:19]} {[%emt 00:00:21]} 33. Qxd4 {[%clk 00:01:33]} {[%emt
00:00:38]} Bxb1 {[%clk 00:04:26]} {[%emt 00:00:22]} 34. Rxb1 {[%clk 00:01:59]}
{[%emt 00:00:05]} Qd8 {[%clk 00:04:32]} {[%emt 00:00:24]} 35. Qg4 {[%clk
00:02:04]} {[%emt 00:00:25]} f5 {[%clk 00:03:31]} {[%emt 00:01:31]} 36. Qe2
{[%clk 00:02:30]} {[%emt 00:00:03]} Qf6 {[%clk 00:02:13]} {[%emt 00:01:48]} 37.
Rd1 {[%clk 00:02:42]} {[%emt 00:00:18]} g5 {[%clk 00:02:27]} {[%emt 00:00:17]}
38. Rd6 {[%clk 00:02:16]} {[%emt 00:00:56]} Re8 {[%clk 00:02:32]} {[%emt
00:00:25]} 39. Rxb6 {[%clk 00:02:12]} {[%emt 00:00:34]} Qxh6 {[%clk 00:02:54]}
{[%emt 00:00:08]} 40. c5 {[%clk 00:02:13]} {[%emt 00:00:29]} g4 {[%clk
00:03:15]} {[%emt 00:00:09]} 41. Qe1 {[%clk 00:01:01]} {[%emt 00:01:42]} f4
{[%clk 00:01:08]} {[%emt 00:02:36]} 42. Qe5 {[%clk 00:24:41]} {[%emt 00:06:51]}
a4 {[%clk 00:24:29]} {[%emt 00:07:10]} 43. c6 {[%clk 00:18:19]} {[%emt
00:06:52]} Rd8 {[%clk 00:24:41]} {[%emt 00:00:16]} 44. Rb8 {[%clk 00:18:27]}
{[%emt 00:00:23]} Rxb8 {[%clk 00:24:26]} {[%emt 00:00:45]} 45. Qxb8+ {[%clk
00:18:51]} {[%emt 00:00:06]} Kf7 {[%clk 00:24:40]} {[%emt 00:00:16]} 46. Qb7+
{[%clk 00:18:48]} {[%emt 00:00:33]} Kf6 {[%clk 00:24:46]} {[%emt 00:00:23]} 47.
c7 {[%clk 00:18:51]} {[%emt 00:00:28]} 1-0

[Event "Schack-SM 2024: Veteran-SM 65+"]
[Site "Fortnox Arena, Hejaregatan 5, Vaxjo, Sweden"]
[Date "2024.07.01"]
[Round "3.2"]
[White "Wedin, Svante"]
[Black "Hedin, Gunnar"]
[Result "0-1"]
[TimeControl "90 minutes for 40 moves + 30 minutes for the rest of the game + 30 seconds per move from move one."]
[WhiteElo "1907"]
[BlackElo "2064"]

1. e4 {[%clk 01:30:57]} e6 {[%clk 01:30:53]} {[%emt 00:00:06]} 2. d4 {[%clk
01:31:22]} {[%emt 00:00:04]} d5 {[%clk 01:31:19]} {[%emt 00:00:04]} 3. Nc3
{[%clk 01:31:46]} {[%emt 00:00:07]} Bb4 {[%clk 01:31:42]} {[%emt 00:00:07]} 4.
e5 {[%clk 01:32:10]} {[%emt 00:00:06]} c5 {[%clk 01:32:07]} {[%emt 00:00:05]} 5.
a3 {[%clk 01:32:35]} {[%emt 00:00:05]} Bxc3+ {[%clk 01:32:33]} {[%emt
00:00:04]} 6. bxc3 {[%clk 01:33:02]} {[%emt 00:00:04]} Qc7 {[%clk 01:32:22]}
{[%emt 00:00:39]} 7. Nf3 {[%clk 01:31:14]} {[%emt 00:02:18]} Ne7 {[%clk
01:31:10]} {[%emt 00:01:42]} 8. Be2 {[%clk 01:30:22]} {[%emt 00:01:22]} b6
{[%clk 01:27:22]} {[%emt 00:04:19]} 9. O-O {[%clk 01:23:56]} {[%emt 00:06:56]}
h6 {[%clk 01:24:38]} {[%emt 00:03:15]} 10. a4 {[%clk 01:23:22]} {[%emt
00:01:04]} Ba6 {[%clk 01:24:24]} {[%emt 00:00:43]} 11. Bb5+ {[%clk 01:17:52]}
{[%emt 00:06:00]} Bxb5 {[%clk 01:24:43]} {[%emt 00:00:12]} 12. axb5 {[%clk
01:18:20]} {[%emt 00:00:01]} a5 {[%clk 01:23:09]} {[%emt 00:02:03]} 13. bxa6
{[%clk 01:18:14]} {[%emt 00:00:37]} Rxa6 {[%clk 01:23:32]} {[%emt 00:00:07]} 14.
Rxa6 {[%clk 01:15:56]} {[%emt 00:02:47]} Nxa6 {[%clk 01:24:00]} {[%emt
00:00:02]} 15. Ba3 {[%clk 01:16:10]} {[%emt 00:00:17]} O-O {[%clk 01:22:58]}
{[%emt 00:01:32]} 16. Qb1 {[%clk 01:13:45]} {[%emt 00:02:54]} Nb8 {[%clk
01:18:43]} {[%emt 00:04:46]} 17. Qb5 {[%clk 01:11:38]} {[%emt 00:02:36]} Nd7
{[%clk 01:18:40]} {[%emt 00:00:33]} 18. Qa6 {[%clk 00:53:50]} {[%emt 00:18:18]}
Qc6 {[%clk 01:09:28]} {[%emt 00:09:43]} 19. Qd3 {[%clk 00:47:32]} {[%emt
00:06:48]} Ra8 {[%clk 01:08:54]} {[%emt 00:01:36]} 20. Bc1 {[%clk 00:47:46]}
{[%emt 00:00:43]} Ra2 {[%clk 01:04:30]} {[%emt 00:04:53]} 21. Be3 {[%clk
00:43:23]} {[%emt 00:04:54]} Qa4 {[%clk 01:02:54]} {[%emt 00:02:06]} 22. Ne1
{[%clk 00:40:59]} {[%emt 00:02:54]} Ra3 {[%clk 00:45:25]} {[%emt 00:18:00]} 23.
Bc1 {[%clk 00:39:33]} {[%emt 00:01:55]} Ra1 {[%clk 00:44:33]} {[%emt 00:01:22]}
24. Be3 {[%clk 00:37:14]} {[%emt 00:02:49]} cxd4 {[%clk 00:38:46]} {[%emt
00:06:18]} 25. cxd4 {[%clk 00:36:59]} {[%emt 00:00:44]} Qb4 {[%clk 00:36:02]}
{[%emt 00:03:14]} 26. Bd2 {[%clk 00:36:19]} {[%emt 00:01:09]} Qc4 {[%clk
00:35:39]} {[%emt 00:00:54]} 27. Bc3 {[%clk 00:33:29]} {[%emt 00:03:19]} Rb1
{[%clk 00:33:29]} {[%emt 00:02:41]} 28. g3 {[%clk 00:19:38]} {[%emt 00:14:21]}
b5 {[%clk 00:32:26]} {[%emt 00:01:33]} 29. Qxc4 {[%clk 00:14:23]} {[%emt
00:05:45]} dxc4 {[%clk 00:30:52]} {[%emt 00:02:04]} 30. Ng2 {[%clk 00:14:46]}
{[%emt 00:00:07]} Rxf1+ {[%clk 00:31:06]} {[%emt 00:00:17]} 31. Kxf1 {[%clk
00:15:07]} {[%emt 00:00:08]} Nd5 {[%clk 00:31:28]} {[%emt 00:00:08]} 32. Ba5
{[%clk 00:15:12]} {[%emt 00:00:25]} Nb8 {[%clk 00:29:25]} {[%emt 00:02:34]} 33.
Bd2 {[%clk 00:13:43]} {[%emt 00:01:58]} Nc6 {[%clk 00:29:12]} {[%emt 00:00:43]}
34. Be3 {[%clk 00:10:31]} {[%emt 00:03:41]} b4 {[%clk 00:15:12]} {[%emt
00:14:31]} 35. Ke1 {[%clk 00:10:28]} {[%emt 00:00:33]} Nc3 {[%clk 00:11:34]}
{[%emt 00:04:09]} 36. Kd2 {[%clk 00:09:17]} {[%emt 00:01:41]} Nb5 {[%clk
00:11:04]} {[%emt 00:01:00]} 37. Ne1 {[%clk 00:06:17]} {[%emt 00:03:30]} f6
{[%clk 00:04:32]} {[%emt 00:07:02]} 38. exf6 {[%clk 00:05:03]} {[%emt
00:01:44]} gxf6 {[%clk 00:05:00]} {[%emt 00:00:02]} 39. Nf3 {[%clk 00:05:13]}
{[%emt 00:00:19]} Kg7 {[%clk 00:04:37]} {[%emt 00:00:54]} 40. Kc1 {[%clk
00:02:09]} {[%emt 00:03:33]} h5 {[%clk 00:03:33]} {[%emt 00:01:34]} 41. Nd2
{[%clk 00:30:08]} {[%emt 00:02:31]} Na5 {[%clk 00:18:41]} {[%emt 00:15:22]} 42.
Ne4 {[%clk 00:27:05]} {[%emt 00:03:32]} Nc7 {[%clk 00:18:25]} {[%emt 00:00:47]}
43. Bf4 {[%clk 00:25:25]} {[%emt 00:02:10]} Nd5 {[%clk 00:18:33]} {[%emt
00:00:22]} 44. Bd6 {[%clk 00:25:09]} {[%emt 00:00:46]} Nc6 {[%clk 00:14:46]}
{[%emt 00:04:17]} 45. Nd2 {[%clk 00:23:31]} {[%emt 00:02:08]} Na5 {[%clk
00:13:00]} {[%emt 00:02:17]} 46. Ne4 {[%clk 00:21:33]} {[%emt 00:02:27]} Nb7
{[%clk 00:12:07]} {[%emt 00:01:24]} 47. Bb8 {[%clk 00:21:36]} {[%emt 00:00:27]}
f5 {[%clk 00:11:36]} {[%emt 00:01:00]} 48. Be5+ {[%clk 00:20:03]} {[%emt
00:02:03]} Kf7 {[%clk 00:11:16]} {[%emt 00:00:49]} 49. Ng5+ {[%clk 00:19:41]}
{[%emt 00:00:53]} Ke7 {[%clk 00:11:29]} {[%emt 00:00:17]} 50. Nh3 {[%clk
00:19:11]} {[%emt 00:00:59]} Nd8 {[%clk 00:10:57]} {[%emt 00:01:02]} 51. Nf4
{[%clk 00:14:26]} {[%emt 00:05:16]} Nxf4 {[%clk 00:11:06]} {[%emt 00:00:21]} 52.
Bxf4 {[%clk 00:14:54]} {[%emt 00:00:02]} Nc6 {[%clk 00:11:17]} {[%emt
00:00:19]} 53. Be3 {[%clk 00:13:58]} {[%emt 00:01:26]} Kd6 {[%clk 00:11:22]}
{[%emt 00:00:25]} 54. c3 {[%clk 00:14:12]} {[%emt 00:00:16]} b3 {[%clk
00:08:18]} {[%emt 00:03:35]} 55. Kd1 {[%clk 00:10:42]} {[%emt 00:03:59]} Kd5
{[%clk 00:08:00]} {[%emt 00:00:49]} 56. Bf4 {[%clk 00:07:42]} {[%emt 00:03:29]}
Ke4 {[%clk 00:07:56]} {[%emt 00:00:33]} 0-1

[Event "Schack-SM 2024: Veteran-SM 65+"]
[Site "Fortnox Arena, Hejaregatan 5, Vaxjo, Sweden"]
[Date "2024.07.01"]
[Round "3.3"]
[White "Andersson, Sven-Olof"]
[Black "Sigeman, Johan"]
[Result "1/2-1/2"]
[TimeControl "90 minutes for 40 moves + 30 minutes for the rest of the game + 30 seconds per move from move one."]
[WhiteElo "1884"]
[BlackElo "2049"]

1. d4 {[%clk 01:30:56]} {[%emt 00:00:02]} d5 {[%clk 01:30:14]} {[%emt
00:00:47]} 2. Nf3 {[%clk 01:31:12]} {[%emt 00:00:15]} Nf6 {[%clk 01:30:30]}
{[%emt 00:00:12]} 3. g3 {[%clk 01:31:25]} {[%emt 00:00:18]} e6 {[%clk
01:30:38]} {[%emt 00:00:22]} 4. Bg2 {[%clk 01:31:36]} {[%emt 00:00:19]} c5
{[%clk 01:30:55]} {[%emt 00:00:13]} 5. e3 {[%clk 01:31:28]} {[%emt 00:00:37]}
Nc6 {[%clk 01:31:06]} {[%emt 00:00:19]} 6. b3 {[%clk 01:30:55]} {[%emt
00:01:04]} Bd6 {[%clk 01:31:04]} {[%emt 00:00:31]} 7. Bb2 {[%clk 01:31:14]}
{[%emt 00:00:11]} O-O {[%clk 01:28:48]} {[%emt 00:02:47]} 8. Nbd2 {[%clk
01:30:45]} {[%emt 00:00:59]} Qe7 {[%clk 01:23:10]} {[%emt 00:06:08]} 9. Ne5
{[%clk 01:26:39]} {[%emt 00:04:34]} Nd7 {[%clk 01:18:15]} {[%emt 00:05:27]} 10.
Nxd7 {[%clk 01:21:24]} {[%emt 00:05:45]} Bxd7 {[%clk 01:18:26]} {[%emt
00:00:18]} 11. O-O {[%clk 01:21:38]} {[%emt 00:00:16]} cxd4 {[%clk 01:04:56]}
{[%emt 00:14:00]} 12. exd4 {[%clk 01:21:37]} {[%emt 00:00:31]} Ba3 {[%clk
01:04:47]} {[%emt 00:00:40]} 13. Qc1 {[%clk 01:11:53]} {[%emt 00:10:12]}
1/2-1/2

[Event "Schack-SM 2024: Veteran-SM 65+"]
[Site "Fortnox Arena, Hejaregatan 5, Vaxjo, Sweden"]
[Date "2024.07.01"]
[Round "3.4"]
[White "Wengholm, Anders"]
[Black "Green, Per"]
[Result "1/2-1/2"]
[TimeControl "90 minutes for 40 moves + 30 minutes for the rest of the game + 30 seconds per move from move one."]
[WhiteTitle "CM"]
[WhiteElo "2180"]
[BlackElo "1944"]

1. d4 {[%clk 01:21:44]} {[%emt 00:09:15]} Nf6 {[%clk 01:30:42]} {[%emt
00:00:19]} 2. c4 {[%clk 01:21:51]} {[%emt 00:00:23]} e6 {[%clk 01:30:51]}
{[%emt 00:00:20]} 3. Nf3 {[%clk 01:17:06]} {[%emt 00:05:15]} d5 {[%clk
01:30:29]} {[%emt 00:00:52]} 4. g3 {[%clk 01:17:04]} {[%emt 00:00:32]} dxc4
{[%clk 01:29:54]} {[%emt 00:01:06]} 5. Bg2 {[%clk 01:16:43]} {[%emt 00:00:51]}
c5 {[%clk 01:29:35]} {[%emt 00:00:49]} 6. O-O {[%clk 01:15:41]} {[%emt
00:01:31]} Nc6 {[%clk 01:29:27]} {[%emt 00:00:38]} 7. Qa4 {[%clk 01:13:30]}
{[%emt 00:02:42]} Bd7 {[%clk 01:29:31]} {[%emt 00:00:25]} 8. Qxc4 {[%clk
01:13:41]} {[%emt 00:00:19]} b5 {[%clk 01:29:37]} {[%emt 00:00:25]} 9. Qd3
{[%clk 01:12:44]} {[%emt 00:01:26]} c4 {[%clk 01:29:29]} {[%emt 00:00:38]} 10.
Qd1 {[%clk 01:12:43]} {[%emt 00:00:32]} Rc8 {[%clk 01:29:23]} {[%emt 00:00:35]}
11. b3 {[%clk 01:07:54]} {[%emt 00:05:19]} cxb3 {[%clk 01:17:38]} {[%emt
00:12:15]} 12. axb3 {[%clk 01:00:24]} {[%emt 00:07:59]} Qb6 {[%clk 01:16:18]}
{[%emt 00:01:50]} 13. Bg5 {[%clk 00:51:06]} {[%emt 00:09:48]} Be7 {[%clk
01:16:14]} {[%emt 00:00:34]} 14. Nbd2 {[%emt 00:08:33]} h6 {[%clk 01:13:50]}
{[%emt 00:02:51]} 15. Bxf6 {[%clk 00:43:24]} {[%emt 00:00:13]} Bxf6 {[%clk
01:14:04]} {[%emt 00:00:16]} 16. Ne4 {[%clk 00:38:19]} {[%emt 00:05:35]} Be7
{[%emt 00:01:47]} 1/2-1/2